Workbook

Sheet Sheet1
A1: 桃花江项目地块基本情况统计表
A2: 项目名称 | B2: 权属公司 | C2: 不动产证号 | D2: 地理位置 | E2: 土地性质（划拨/出让） | F2: 地块名称 | G2: 用地性质 | H2: 用地面积 （m2） | I2: 用地面积 （亩） | J2: 容积率 | K2: 计容建筑面积 （m2） | L2: 摘地时间 | M2: 使用年限 | N2: 土地取得价款（万元） | O2: 楼面地价（元） | P2: 旅馆面积 （m2） | Q2: 商业面积 （m2） | R2: 建筑限高 | S2: 建筑密度 | T2: 绿地率 | U2: 备注
A3: 鼎亨桃花江度假酒店项目 | B3: 桂林鼎亨酒店投资有限公司 | C3: 桂（2020）临桂区不动产权第0045906号 | D3: 桃花江西岸阳江北路以南，老庙山以东 | E3: 出让 | F3: B1-1a | G3: 防护绿地 | H3: 1925 | I3: =H3/666.666 -> 2.89 | J3: —— | K3: —— | L3: 2020-04-20 | M3: 旅馆用地：2020年5月9日起2060年5月8日止； 公园与绿地：2020年5月9日起2070年5月8日止 | N3: 18611 | O3: =N3*10000/(K6+K7) -> 3091.9 | P3: —— | Q3: —— | R3: —— | S3: —— | T3: 90% | U3: 楼面地价不包括公园绿地计容面积
F4: B1-1c | G4: 防护绿地 | H4: 6022 | I4: 9.03 | J4: —— | K4: —— | P4: —— | Q4: —— | R4: —— | S4: —— | T4: 90%
F5: B1-2 | G5: 公园绿地 | H5: 39933 | I5: 59.90 | J5: 0.15 | K5: =H5*0.15 -> 5989.95 | P5: 5989.95 | Q5: —— | R5: 12 | S5: 5% | T5: 65%
F6: B1-3b | G6: 旅馆用地 | H6: 39317 | I6: 58.98 | J6: 1 | K6: =H6*1 -> 39317 | P6: 39317 | Q6: —— | R6: 12 | S6: 35% | T6: 40%
F7: B1-4 | G7: 旅馆用地 | H7: 34792 | I7: 52.19 | J7: 0.6 | K7: =H7*0.6 -> 20875.2 | P7: 20875.2 | Q7: —— | R7: 12 | S7: 25% | T7: 40%
A8: 小计 | H8: =SUM(H3:H7) -> 121989 | I8: 182.98 | K8: =SUM(K5:K7) -> 66182.15 | P8: =SUM(P5:P7) -> 66182.15
A9: 桃江宾馆 | B9: 桂林市桃江宾馆有限公司 | C9: —— | D9: 桃花江北路以南，老庙山以东 | E9: 出让 | F9: 贵宾楼 | G9: 商业用地 | H9: 1779.3 | I9: 2.67 | J9: 1.5 | K9: 2709.36 | L9: —— | M9: 到2050年5月31日止 | N9: —— | O9: —— | P9: —— | Q9: 2709.36 | R9: 15.5 | S9: 50% | U9: 不含历史保留建筑1528.51㎡
E10: 划拨 | F10: 桃江宾馆 | G10: 旅馆用地 | H10: 23998.9 | I10: 36.00 | J10: 0.3 | K10: 7346.78 | L10: —— | M10: 无 | N10: —— | O10: —— | P10: 7346.78 | Q10: —— | R10: 19.5 | S10: 15%
E11: 出让 | F11: 培训中心 | G11: 教育用地 | H11: 5097 | I11: 7.65 | J11: —— | K11: —— | L11: —— | M11: 到2055年5月10日止 | N11: —— | O11: —— | P11: —— | Q11: —— | R11: 12 | S11: ——
A12: 小计 | H12: =H9+H10+H11 -> 30875.2 | I12: =I9+I10+I11 -> 46.31 | K12: =K9+K10 -> 10056.14 | P12: =P10 -> 7346.78 | Q12: =Q9 -> 2709.36
A13: 合计 | H13: =H12+H8 -> 152864.2 | I13: =I12+I8 -> 229.2965293 | K13: =K12+K8 -> 76238.29
